bitfinex/quotes_SOLUSD_20250222
["timestamp","ask_amount","ask_price","bid_price","bid_amount"]
[1740186406924,4.96,171.76,171.69,29.36672423]
[1740186406925,150.2,171.76,171.69,29.36672423]
[1740186407073,81.2,171.75,171.65,21.3902]
[1740186407273,81.2,171.75,171.65,111.40651747]
[1740186407592,6.4391,171.81,171.69,20.3855]
[1740186407777,6.4391,171.81,171.7,8.51631747]
[1740186407977,94.08874886,171.81,171.77,29.36672423]
[1740186408398,87.64964886,171.81,171.77,29.36672423]
[1740186408600,81.2,171.8,171.77,29.36672423]
[1740186409504,87.0207,171.8,171.73,29.36672423]
[1740186409672,81.2,171.77,171.73,29.36672423]
[1740186410406,81.2,171.77,171.75,29.36672423]
[1740186411411,81.2,171.77,171.73,29.36672423]
[1740186412697,81.2,171.76,171.69,5.8244]
[1740186412982,81.2,171.75,171.69,35.19112423]
[1740186413801,81.2,171.75,171.69,29.36672423]
[1740186414096,81.23,171.75,171.7,1.45847063]
[1740186414394,81.23,171.75,171.7,4.8473366]
[1740186415097,81.23,171.75,171.7,3.38886597]
[1740186415513,81.23,171.75,171.69,35.19112423]
[1740186416108,81.2,171.74,171.71,29.36672423]
[1740186416290,0.03,171.75,171.71,29.36672423]
[1740186417601,0.03,171.75,171.73,29.36672423]
[1740186417981,0.03,171.75,171.74,5.8227]
[1740186419783,0.03,171.75,171.72,5.8231]
[1740186420111,0.03,171.75,171.73,29.36672423]
[1740186421894,0.03,171.75,171.74,5.8227]
[1740186422088,2.02701,171.78,171.74,20.3795]
[1740186422283,2.02701,171.78,171.77,29.36672423]
[1740186422593,2.02701,171.78,171.77,18.32351603]
[1740186422907,2.02701,171.78,171.74,24.14621603]
[1740186423286,2.02701,171.78,171.76,18.32351603]
[1740186424093,2.02701,171.78,171.76,24.14521603]
[1740186424410,2.02701,171.78,171.76,5.8217]
[1740186424607,99.84964886,171.77,171.67,5.8251]
[1740186424812,81.2,171.76,171.69,18.32351603]
[1740186425308,81.2,171.76,171.71,18.32351603]
[1740186425515,81.2,171.75,171.71,18.32351603]
[1740186426086,81.2,171.75,171.72,5.8234]
[1740186426720,81.2,171.75,171.7,9.20864622]
[1740186427493,81.2,171.75,171.7,5.8239]
[1740186427700,81.2,171.75,171.69,24.21091603]
[1740186427896,168.84964886,171.74,171.69,0.063]
[1740186429616,18.64964886,171.72,171.69,0.063]
[1740186429916,81.2,171.71,171.69,0.063]
[1740186431827,87.0238,171.71,171.69,0.063]
[1740186433305,81.2,171.71,171.69,0.063]
[1740186434326,81.2,171.71,171.69,29.43251715]
[1740186435917,81.2,171.71,171.69,0.063]
[1740186437118,87.0239,171.71,171.69,0.063]
[1740186437290,81.2,171.7,171.69,0.063]
[1740186440513,81.2,171.7,171.51,41.58857274]
[1740186440514,26.8705,171.66,171.51,41.58857274]
[1740186440705,2.0,171.48,171.38,2.92724291]
[1740186440907,24.80964886,171.48,171.47,8.07365529]
[1740186441121,20.0,171.45,171.38,2.92724291]
[1740186441306,18.64964886,171.44,171.36,108.61922816]
[1740186441503,20.0,171.4,171.36,108.61922816]
[1740186441704,29.86583841,171.4,171.36,137.98874531]
[1740186441907,35.08107494,171.41,171.36,108.61922816]
[1740186442103,10.9942,171.41,171.36,108.61922816]
[1740186442318,40.91527494,171.41,171.39,5.73248656]
[1740186442513,40.91527494,171.41,171.36,0.063]
[1740186442819,93.1,171.42,171.36,29.43251715]
[1740186443000,29.5316041,171.46,171.4,29.36951715]
[1740186443207,93.1,171.48,171.42,29.36951715]
[1740186443812,93.1,171.48,171.44,29.36951715]
[1740186443999,9.07040279,171.45,171.42,29.36951715]
[1740186445497,9.07040279,171.48,171.4,29.36951715]
[1740186445697,81.2,171.47,171.4,29.36951715]
[1740186446337,9.07040279,171.46,171.4,29.36951715]
[1740186447421,81.2,171.47,171.38,29.36951715]
[1740186447624,110.56951715,171.47,171.36,31.08061715]
[1740186447803,174.3,171.46,171.38,29.36951715]
[1740186448521,174.3,171.46,171.4,0.063]
[1740186448730,90.27040279,171.45,171.4,0.063]
[1740186449604,119.63991994,171.45,171.4,0.063]
[1740186449912,29.36951715,171.43,171.4,0.063]
[1740186450108,9.07040279,171.44,171.4,0.063]
[1740186450317,9.07040279,171.44,171.36,51.50531715]
[1740186450516,2.79e-06,171.44,171.43,1.0]
[1740186450824,18.14080558,171.47,171.46,21.0]
[1740186451011,18.14080558,171.47,171.46,50.36951715]
[1740186451601,18.14080558,171.47,171.46,56.20171715]
[1740186452618,93.1,171.54,171.46,56.20171715]
[1740186452827,81.2,171.55,171.46,56.20171715]
[1740186453432,81.2,171.55,171.46,55.20171715]
[1740186453610,81.2,171.55,171.46,25.8322]
[1740186453937,81.2,171.55,171.46,69.78231715]
[1740186455727,110.56951715,171.54,171.46,5.8322]
[1740186455925,29.36951715,171.52,171.46,5.8322]
[1740186456307,110.56951715,171.54,171.46,5.8322]
[1740186457034,110.56951715,171.54,171.43,96.083]
[1740186457338,116.39901715,171.54,171.44,35.20241715]
[1740186459435,87.0295,171.54,171.44,35.20241715]
[1740186459734,87.0295,171.54,171.44,35.26541715]
[1740186460119,81.2,171.54,171.44,49.84771715]
[1740186460324,81.2,171.54,171.46,29.36951715]
[1740186460924,87.0296,171.54,171.46,29.36951715]
[1740186461126,174.3,171.53,171.44,49.84771715]
[1740186462038,180.1299,171.53,171.44,49.84771715]
[1740186462442,174.3,171.53,171.44,49.84771715]
[1740186462814,180.1299,171.53,171.44,49.84771715]
[1740186463029,180.1299,171.53,171.46,29.36951715]
[1740186463816,180.1299,171.53,171.48,29.36951715]
[1740186464436,174.3,171.53,171.48,29.36951715]
[1740186465039,174.3,171.53,171.5,29.36951715]
[1740186465223,81.2,171.52,171.5,29.36951715]
[1740186467339,87.0302,171.52,171.5,29.36951715]
[1740186467854,174.3,171.51,171.44,0.063]
[1740186468020,179.46,171.5,171.46,29.36951715]
[1740186468847,185.291,171.5,171.46,29.36951715]
[1740186469047,185.291,171.5,171.44,35.26521715]
[1740186469234,185.291,171.5,171.44,29.43251715]
[1740186469437,185.291,171.5,171.44,0.063]
[1740186469749,18.64964886,171.49,171.44,0.063]
[1740186470340,5.8315,171.48,171.44,0.063]
[1740186472038,81.2,171.47,171.44,0.063]
[1740186472243,18.64964886,171.45,171.37,29.36951715]
[1740186472420,174.3,171.44,171.37,29.36951715]
[1740186473255,174.3,171.44,171.38,5.8349]
[1740186475668,81.2,171.47,171.42,29.36951715]
[1740186477256,81.2,171.47,171.43,5.8332]
[1740186478447,87.032,171.47,171.4,29.36951715]
[1740186478650,87.032,171.47,171.39,5.8346]
[1740186478835,81.2,171.47,171.39,5.8346]
[1740186479030,174.3,171.46,171.39,5.8346]
[1740186480036,174.3,171.46,171.4,29.36951715]
[1740186480243,174.3,171.46,171.42,29.36951715]
[1740186480438,81.2,171.49,171.42,29.36951715]
[1740186480651,81.23,171.52,171.48,29.36951715]
[1740186481249,81.23,171.52,171.49,5.8312]
[1740186482565,81.23,171.52,171.48,29.36951715]
[1740186482741,81.23,171.52,171.48,35.20091715]
[1740186484384,87.0603,171.52,171.44,0.063]
[1740186484571,99.84964886,171.51,171.44,0.063]
[1740186484754,18.64964886,171.49,171.44,0.063]
[1740186485341,5.8315,171.48,171.44,0.063]
[1740186485563,81.2,171.47,171.44,0.063]
[1740186485747,81.2,171.46,171.44,0.063]
[1740186487865,81.2,171.45,171.44,0.063]
[1740186488265,99.84964886,171.45,171.44,0.063]
[1740186489043,111.74964886,171.45,171.44,0.063]
[1740186489255,24.48224886,171.45,171.44,0.063]
[1740186489452,20.0,171.41,171.36,0.063]
[1740186489666,29.36951715,171.38,171.36,0.063]
[1740186490050,6.4835,171.39,171.36,0.063]
[1740186490369,5.08,171.4,171.36,0.063]
[1740186491577,18.64964886,171.41,171.36,0.063]
[1740186491746,0.5,213.34,171.42,1.0]
[1740186491747,0.03,171.52,171.42,1.0]
[1740186491947,0.03,171.52,171.46,29.36951715]
[1740186492148,0.03,171.52,171.44,20.0]
[1740186492369,0.03,171.52,171.44,49.36951715]
[1740186492569,0.03,171.52,171.46,29.36951715]
[1740186493469,0.03,171.52,171.47,5.8319]
[1740186494385,0.03,171.52,171.48,29.36951715]
[1740186495778,0.03,171.52,171.49,5.8312]
[1740186496273,0.03,171.52,171.45,14.5808]
[1740186496274,0.03,171.52,171.46,35.20171715]
[1740186496653,0.03,171.52,171.48,29.36951715]
[1740186497157,0.03,171.52,171.5,29.36951715]
[1740186497874,0.03,171.52,171.51,5.8305]
[1740186499400,81.23,171.55,171.51,20.4069]
[1740186499678,81.23,171.55,171.54,29.36951715]
[1740186499850,0.0001,171.55,171.54,64.5685343]
[1740186500561,0.0001,171.55,171.54,35.19901715]
[1740186500753,0.0001,171.55,171.54,64.5685343]
[1740186501485,81.2,171.66,171.57,20.0]
[1740186501665,81.2,171.66,171.64,29.36951715]
[1740186501993,81.2,171.66,171.64,35.19561715]
[1740186503155,81.23,171.7,171.64,35.19561715]
[1740186503378,81.23,171.7,171.69,29.36951715]
[1740186504497,81.23,171.7,171.67,29.36951715]
[1740186506375,81.23,171.7,171.65,35.19521715]
[1740186508178,110.56951715,171.69,171.58,14.57]
[1740186508381,29.36951715,171.67,171.58,43.93951715]
[1740186508758,99.84964886,171.68,171.59,20.3974]
[1740186508990,81.2,171.68,171.6,29.36951715]
[1740186509167,81.2,171.68,171.62,29.36951715]
[1740186509567,0.03,171.7,171.62,29.36951715]
[1740186510287,0.03,171.7,171.63,5.8264]
[1740186510871,18.64964886,171.68,171.61,5.8268]
[1740186511076,110.56951715,171.67,171.59,5.8278]
[1740186511273,29.36951715,171.65,171.57,5.8285]
[1740186511574,81.2,171.64,171.57,5.8285]
[1740186512393,129.21916601,171.63,171.55,1.5854]
[1740186512592,129.21916601,171.63,171.53,5.8298]
[1740186512779,18.64964886,171.61,171.53,5.8298]
[1740186512964,81.2,171.62,171.53,5.8298]
[1740186513172,81.2,171.62,171.56,49.36951715]
[1740186513492,87.026,171.65,171.56,49.36951715]
[1740186513793,18.64964886,171.64,171.56,49.36951715]
[1740186514284,24.47604886,171.64,171.57,5.8285]
[1740186514790,53.84556601,171.64,171.57,5.8285]
[1740186515589,53.84556601,171.64,171.54,29.36951715]
[1740186515797,53.84556601,171.64,171.55,5.8292]
[1740186516094,48.01916601,171.64,171.55,20.4022]
[1740186516479,18.64964886,171.59,171.53,5.8298]
[1740186516691,81.2,171.58,171.53,5.8298]
[1740186517063,81.2,171.58,171.52,88.22]
[1740186517064,81.2,171.57,171.52,88.22]
[1740186517567,81.2,171.57,171.52,94.0501]
[1740186517789,81.2,171.57,171.55,0.063]
[1740186519198,81.2,171.6,171.55,0.063]
[1740186519372,81.2,171.62,171.55,0.063]
[1740186519572,81.2,171.62,171.55,49.43251715]
[1740186520078,81.2,171.62,171.56,5.8288]
[1740186527594,81.2,171.62,171.57,29.36951715]
[1740186528376,2.02701,171.78,171.74,1.0]
[1740186528705,2.02701,171.78,171.75,14.28106842]
[1740186528906,0.03,171.84,171.77,49.36951715]
[1740186529082,0.03,171.84,171.82,29.36951715]
[1740186530476,0.03,171.84,171.75,6.95839112]
[1740186530672,0.03,171.84,171.78,29.36951715]
[1740186531077,0.03,171.84,171.8,29.36951715]
[1740186531281,0.03,171.84,171.76,5.822]
[1740186531883,0.03,171.84,171.74,5.8224]
[1740186532083,29.36951715,171.82,171.74,5.8224]
[1740186532279,18.64964886,171.81,171.74,5.8224]
[1740186532490,0.03,171.84,171.74,35.19191715]
[1740186532491,29.39951715,171.84,171.74,35.19191715]
[1740186532692,47.66923734,171.83,171.74,5.8224]
[1740186532991,18.64964886,171.82,171.74,5.8224]
[1740186534590,18.64964886,171.82,171.71,14.5586]
[1740186534791,18.64964886,171.82,171.69,88.16]
[1740186534792,18.64964886,171.77,171.69,93.9841]
[1740186534997,98.18304886,171.77,171.69,93.9844]
[1740186535193,98.18304886,171.77,171.69,88.16]
[1740186535404,18.64964886,171.75,171.69,88.16]
[1740186536285,18.64964886,171.75,171.69,141.65343734]
[1740186536812,79.5334,171.76,171.69,141.65343734]
[1740186537013,79.5334,171.76,171.71,47.66923734]
[1740186537214,79.5334,171.76,171.74,47.66923734]
[1740186537402,79.5334,171.78,171.74,47.66923734]
[1740186538811,79.5334,171.78,171.72,47.66923734]
[1740186539014,18.64964886,171.77,171.7,53.49333734]
[1740186539316,79.5334,171.76,171.7,53.49333734]
[1740186540418,79.5334,171.76,171.7,47.66923734]
[1740186540617,98.18304886,171.75,171.7,47.66923734]
[1740186540923,18.64964886,171.73,171.66,47.66923734]
[1740186541223,79.5334,171.72,171.66,47.66923734]
[1740186541899,79.5334,171.72,171.68,47.66923734]
[1740186542314,79.5334,171.72,171.71,47.66923734]
[1740186542517,79.5634,171.74,171.71,47.66923734]
[1740186544521,0.03,171.74,171.71,53.49273734]
[1740186544818,0.03,171.74,171.67,5.8251]
[1740186545021,79.5634,171.74,171.69,47.66923734]
[1740186546105,85.3862,171.74,171.69,47.66923734]
[1740186546312,18.64964886,171.73,171.67,53.49423734]
[1740186546907,18.64964886,171.73,171.69,47.66923734]
[1740186547108,79.5634,171.74,171.69,47.66923734]
[1740186547325,79.5634,171.74,171.73,47.66923734]
[1740186550218,79.5634,171.74,171.73,53.49223734]
[1740186550936,79.5634,171.74,171.72,5.8233]
[1740186551114,79.5634,171.74,171.71,5.8237]
[1740186552333,79.5634,171.74,171.69,53.49353734]
[1740186552734,79.5634,171.74,171.69,5.8243]
[1740186554440,79.5634,171.74,171.69,5.8873]
[1740186556227,0.03,171.74,171.7,29.35238048]
[1740186556443,0.03,171.74,171.71,5.8237]
[1740186557346,0.03,171.74,171.72,29.35238048]
[1740186559128,0.03,171.74,171.72,35.17568048]
[1740186559324,0.03,171.74,171.71,5.8236]
[1740186561440,0.03,171.74,171.69,5.8874]
[1740186563754,79.5334,171.73,171.69,0.063]
[1740186564136,18.64964886,171.72,171.69,0.063]
[1740186564336,79.5334,171.71,171.69,0.063]
[1740186564558,79.5334,171.7,171.69,0.063]
[1740186564749,5.8237,171.71,171.69,0.063]
[1740186565945,110.24964886,171.7,171.69,0.063]
[1740186566741,116.07374886,171.7,171.69,0.063]
[1740186567260,26.47374886,171.7,171.69,0.063]
[1740186567457,24.47374886,171.7,171.69,0.063]
[1740186568853,25.47374886,171.7,171.69,0.063]
[1740186569053,24.47374886,171.7,171.69,0.063]
[1740186569659,25.47374886,171.7,171.69,0.063]
[1740186571161,18.64964886,171.66,171.58,5.8278]
[1740186571364,18.64964886,171.64,171.57,35.18078048]
[1740186571862,18.64964886,171.64,171.57,5.8284]
[1740186572243,18.64964886,171.62,171.56,0.063]
[1740186572464,91.6,171.61,171.56,0.063]
[1740186572849,97.4272,171.61,171.56,0.063]
[1740186573043,91.6,171.61,171.56,29.41538048]
[1740186573250,91.6,171.61,171.58,29.35238048]
[1740186573747,91.6,171.61,171.6,29.35238048]
[1740186573947,18.64964886,171.64,171.6,29.35238048]
[1740186574847,18.64964886,171.64,171.61,5.8271]
[1740186575049,81.2,171.63,171.61,5.8271]
[1740186576162,81.2,171.63,171.59,5.8278]
[1740186577852,18.64964886,171.62,171.57,5.8284]
[1740186578054,18.64964886,171.62,171.56,0.063]
[1740186578246,81.2,171.61,171.56,0.063]
[1740186579558,18.64964886,171.6,171.56,0.063]
[1740186582976,18.64964886,171.58,171.56,0.063]
[1740186583165,99.84964886,171.58,171.56,0.063]
[1740186594991,81.2,171.58,171.56,0.063]
[1740186595188,81.2,171.62,171.56,0.063]
[1740186595390,81.2,171.61,171.56,0.063]
[1740186595689,81.2,171.61,171.57,18.38446755]
[1740186595863,81.2,171.64,171.59,18.38446755]
[1740186596070,172.8,171.67,171.63,18.38446755]
[1740186596293,81.2,171.67,171.63,18.38446755]
[1740186597271,81.2,171.67,171.64,5.8261]
[1740186598690,18.64964886,171.66,171.59,29.37603475]
[1740186598892,18.64964886,171.66,171.59,5.8278]
[1740186598893,18.64964886,171.64,171.59,5.8278]
[1740186599280,18.64964886,171.64,171.58,5.8281]
[1740186599674,18.64964886,171.64,171.57,36.71083475]
[1740186599989,24.47584886,171.64,171.57,36.71083475]
[1740186600287,24.47584886,171.64,171.56,0.063]
[1740186600288,172.8,171.63,171.56,0.063]
[1740186600595,99.84964886,171.62,171.56,0.063]
[1740186600790,18.64964886,171.6,171.56,0.063]
[1740186602589,24.47734886,171.6,171.56,0.063]
[1740186602795,18.64964886,171.58,171.56,0.063]
[1740186602996,99.84964886,171.57,171.56,0.063]
[1740186604286,81.2,171.57,171.56,0.063]
[1740186604897,81.2,171.62,171.56,0.063]
[1740186605088,81.2,171.62,171.57,29.37603475]
[1740186605597,81.2,171.62,171.58,5.8281]
[1740186605802,0.03,171.69,171.65,1.0]
[1740186605984,0.03,171.74,171.68,29.37603475]
[1740186606301,0.03,171.74,171.66,29.37603475]
[1740186607798,0.03,171.74,171.67,5.8251]
[1740186608798,0.03,171.74,171.62,7.6682]
[1740186608799,68.24964886,171.73,171.62,30.90683475]
[1740186609116,18.64964886,171.69,171.59,5.8275]
[1740186609286,29.37603475,171.68,171.59,5.8275]
[1740186609710,29.37603475,171.68,171.58,30.90683475]
[1740186609711,18.64964886,171.67,171.58,30.90683475]
[1740186609917,18.64964886,171.67,171.58,36.73493475]
[1740186610099,18.64964886,171.65,171.56,0.063]
[1740186610300,18.64964886,171.63,171.56,0.063]
[1740186610983,18.64964886,171.61,171.56,0.063]
[1740186611286,18.64964886,171.61,171.56,5.8917]
[1740186611487,18.64964886,171.61,171.56,0.063]
[1740186613112,33.98,171.62,171.58,29.37603475]
[1740186613484,33.98,171.62,171.56,29.43903475]
[1740186614483,33.98,171.62,171.57,5.8285]
[1740186615715,33.98,171.62,171.58,29.37603475]
[1740186616592,33.98,171.64,171.59,5.8278]
[1740186616994,33.98,171.64,171.6,29.37603475]
[1740186617197,33.98,171.66,171.6,29.37603475]
[1740186618718,33.98,171.66,171.61,5.8271]
[1740186622130,18.64964886,171.65,171.59,5.8278]
[1740186622333,18.64964886,171.65,171.56,110.93903475]
[1740186622635,18.64964886,171.63,171.56,29.43903475]
[1740186623425,18.64964886,171.63,171.57,5.8285]
[1740186625028,33.98,171.64,171.58,29.37603475]
[1740186625610,33.98,171.64,171.6,29.37603475]
[1740186625908,33.98,171.66,171.6,29.37603475]
[1740186626732,33.98,171.66,171.61,5.8271]
[1740186628315,33.98,171.66,171.62,29.37603475]
[1740186629419,34.01,171.69,171.62,29.37603475]
[1740186629619,18.64964886,171.68,171.62,29.37603475]
[1740186630235,33.98,171.67,171.58,14.5703]
[1740186630526,18.64964886,171.66,171.58,20.3985]
[1740186630825,18.64964886,171.66,171.58,5.8281]
[1740186632344,24.47534886,171.66,171.57,110.93903475]
[1740186632516,24.47534886,171.66,171.57,116.76743475]
[1740186633417,18.64964886,171.64,171.57,35.26743475]
[1740186635042,33.98,171.65,171.59,29.37603475]
[1740186635544,33.98,171.65,171.57,35.26753475]
[1740186636041,33.98,171.65,171.57,49.83883475]
[1740186636242,18.64964886,171.64,171.57,29.43903475]
[1740186636426,5.8264,171.63,171.57,0.063]
[1740186636632,18.64964886,171.62,171.57,0.063]
[1740186637439,48.02568361,171.6,171.57,0.063]
[1740186637635,48.02568361,171.58,171.57,0.063]
[1740186637841,97.62568361,171.58,171.57,0.063]
[1740186638435,103.45378361,171.58,171.57,0.063]
[1740186638844,97.62568361,171.58,171.57,0.063]
[1740186639147,68.24964886,171.58,171.57,0.063]
[1740186641355,81.2,171.6,171.57,0.063]
[1740186641851,81.2,171.62,171.57,0.063]
[1740186642054,81.2,171.62,171.58,29.37603475]
[1740186642551,18.64964886,171.65,171.58,29.37603475]
[1740186642726,18.64964886,171.65,171.59,5.8278]
[1740186642927,18.64964886,171.65,171.59,20.3974]
[1740186643131,87.6869,171.68,171.6,29.37603475]
[1740186643328,18.64964886,171.66,171.6,29.37603475]
[1740186643834,81.2,171.67,171.62,29.37603475]
[1740186644341,130.8,171.66,171.57,5.8912]
[1740186644528,0.0001,171.69,171.67,1.0]
[1740186644727,0.0001,171.7,171.68,70.53626335]
[1740186645139,0.0001,171.7,171.69,1.0]
[1740186645341,0.0001,171.7,171.69,36.3355286]
[1740186645541,0.0001,171.7,171.69,64.40862307]
[1740186645762,0.03,171.84,171.75,2.0]
[1740186645930,0.03,171.84,171.76,19.96472249]
[1740186646137,18.67964886,171.84,171.74,29.37603475]
[1740186646465,18.64964886,171.82,171.7,29.37603475]
[1740186646653,68.24964886,171.82,171.73,20.0]
[1740186648050,29.37603475,171.79,171.7,28.2484566]
[1740186648245,18.64964886,171.76,171.69,5.8243]
[1740186648631,18.64964886,171.76,171.69,20.0]
[1740186649246,18.64964886,171.76,171.66,29.37603475]
[1740186649653,18.64964886,171.72,171.62,29.37603475]
[1740186649835,110.57603475,171.71,171.61,87.3268]
[1740186650761,99.84964886,171.7,171.6,29.37603475]
[1740186651140,99.84964886,171.7,171.6,35.20343475]
[1740186651663,18.64964886,171.68,171.58,29.37603475]
[1740186651873,86.6,171.67,171.58,29.37603475]
[1740186652640,155.27524886,171.66,171.57,0.063]
[1740186655166,155.27524886,171.66,171.58,29.37603475]
[1740186657249,81.2,171.65,171.58,29.37603475]
[1740186657445,99.84964886,171.64,171.57,0.063]
[1740186657751,18.64964886,171.62,171.57,0.063]
[1740186658168,81.2,171.61,171.59,29.37603475]
[1740186658963,81.2,171.65,171.59,29.37603475]
[1740186659158,18.64964886,171.66,171.57,0.063]
[1740186659458,18.64964886,171.64,171.57,0.063]
[1740186659665,18.64964886,171.62,171.57,0.063]
[1740186659876,81.2,171.61,171.57,0.063]
[1740186660371,81.2,171.61,171.57,5.8915]
[1740186660575,81.2,171.61,171.58,29.37603475]
[1740186661974,18.64964886,171.6,171.57,0.063]
[1740186662189,99.84964886,171.6,171.57,0.063]
[1740186662355,81.2,171.59,171.57,0.063]
[1740186663070,81.2,171.59,171.58,0.063]
[1740186663878,81.2,171.61,171.58,0.063]
[1740186664180,81.2,171.64,171.59,29.37603475]
[1740186664381,18.64964886,171.63,171.59,29.37603475]
[1740186665064,81.2,171.64,171.61,29.37603475]
[1740186665277,18.64964886,171.65,171.61,29.37603475]
[1740186665580,18.64964886,171.65,171.59,35.20363475]
[1740186666476,18.64964886,171.65,171.58,5.8911]
[1740186666778,18.64964886,171.63,171.58,0.063]
[1740186667182,24.47624886,171.63,171.58,0.063]
[1740186668377,18.64964886,171.63,171.58,0.063]
[1740186668680,81.2,171.62,171.58,0.063]
[1740186669487,18.64964886,171.61,171.58,0.063]
[1740186669777,99.84964886,171.61,171.58,0.063]
[1740186670081,5.3,171.6,171.58,0.063]
[1740186670271,81.2,171.59,171.58,0.063]
[1740186670471,18.64964886,171.59,171.58,0.063]
[1740186671782,24.47744886,171.59,171.58,0.063]
[1740186677183,18.64964886,171.58,171.57,0.063]
[1740186678572,5.8278,171.59,171.57,0.063]
[1740186678882,18.64964886,171.58,171.57,0.063]
[1740186681475,11.0461,171.64,171.57,18.44653724]
[1740186681988,20.0,171.6,171.57,18.44653724]
[1740186682180,18.64964886,171.59,171.57,18.44653724]
[1740186682378,18.64964886,171.59,171.57,24.27493724]
[1740186682674,18.64964886,171.59,171.57,35.27826494]
[1740186684173,18.64964886,171.59,171.57,35.27816494]
[1740186684385,5.8262,171.64,171.57,35.27816494]
[1740186684580,23.90964886,171.63,171.57,35.27816494]
[1740186684978,154.70964886,171.63,171.57,35.27816494]
[1740186685397,154.70964886,171.63,171.59,29.38686494]
[1740186685592,149.44964886,171.63,171.59,29.38686494]
[1740186688889,155.27614886,171.63,171.59,29.38686494]
[1740186689192,149.44964886,171.63,171.59,29.38686494]
[1740186689384,155.27614886,171.63,171.57,35.27826494]
[1740186689590,149.44964886,171.63,171.57,35.27826494]
[1740186689998,18.64964886,171.61,171.57,35.27826494]
[1740186691503,24.47674886,171.61,171.57,29.44986494]
[1740186693302,24.47674886,171.61,171.57,0.063]
[1740186695597,38.64964886,171.58,171.57,0.063]
[1740186696905,44.47774886,171.58,171.57,0.063]
[1740186698405,73.8646138,171.58,171.57,0.063]
[1740186698709,18.64964886,171.57,171.56,0.063]
[1740186698889,23.80964886,171.57,171.56,0.063]
[1740186699885,29.63814886,171.57,171.56,0.063]
[1740186704618,48.03398418,171.57,171.56,0.063]
[1740186707322,5.828,171.59,171.56,0.063]
[1740186707631,5.08,171.58,171.56,0.063]
[1740186707920,18.64964886,171.57,171.56,0.063]
[1740186708224,0.03,171.61,171.56,0.063]
[1740186708416,5.08,171.6,171.56,0.063]
[1740186708601,18.64964886,171.59,171.56,0.063]
[1740186708803,18.64964886,171.57,171.56,0.063]
[1740186710624,81.2,171.58,171.56,0.063]
[1740186712228,18.67964886,171.57,171.56,0.063]
[1740186712805,24.50814886,171.57,171.56,0.063]
[1740186713600,74.10814886,171.57,171.56,0.063]
[1740186714708,68.27964886,171.57,171.56,0.063]
[1740186715110,74.10814886,171.57,171.56,0.063]
[1740186717624,68.27964886,171.57,171.56,0.063]
[1740186718003,74.10814886,171.57,171.56,0.063]
[1740186718407,68.27964886,171.57,171.56,0.063]
[1740186718920,74.10814886,171.57,171.56,0.063]
[1740186726734,68.27964886,171.57,171.56,0.063]
[1740186727821,0.03,171.57,171.56,0.063]
[1740186728221,0.03,171.57,171.55,0.063]
[1740186728222,75.4585,171.57,171.55,0.063]
[1740186728616,18.64964886,171.56,171.55,0.063]
[1740186728826,49.63,171.57,171.55,0.063]
[1740186730031,18.64964886,171.56,171.55,0.063]
[1740186731518,99.84964886,171.56,171.55,0.063]
[1740186731721,24.47844886,171.56,171.55,0.063]
[1740186733740,54.67927915,171.82,171.69,3.98102236]
[1740186733946,54.67927915,171.82,171.73,18.39583532]
[1740186734130,0.03,171.75,171.72,18.39583532]
[1740186734331,0.03,171.75,171.74,18.39583532]
[1740186735822,0.03,171.79,171.74,24.21853532]
[1740186736043,0.03,171.79,171.77,18.39583532]
[1740186736848,0.03,171.79,171.77,29.30565924]
[1740186737932,0.03,171.79,171.77,35.12735924]